bitfinex/quotes_BTCUSD_20241003
["timestamp","ask_amount","ask_price","bid_price","bid_amount"]
[1727968072732,0.50590298,60246.0,60245.0,0.000816]
[1727968073248,0.34271627,60246.0,60245.0,0.000816]
[1727968073513,0.37473705,60246.0,60245.0,0.001816]
[1727968074030,0.36873705,60246.0,60245.0,0.000816]
[1727968074282,0.37873705,60246.0,60245.0,0.000816]
[1727968075004,0.36519349,60246.0,60245.0,0.000816]
[1727968075261,0.37880725,60246.0,60245.0,0.000816]
[1727968075501,0.36880725,60246.0,60245.0,0.000816]
[1727968075710,0.37680725,60246.0,60245.0,0.001816]
[1727968076177,0.35078647,60246.0,60245.0,0.001816]
[1727968077418,0.51397318,60246.0,60245.0,0.001816]
[1727968078183,0.50035942,60246.0,60245.0,0.001816]
[1727968078433,0.51397471,60246.0,60245.0,0.001816]
[1727968078681,0.95553043,60246.0,60245.0,0.001816]
[1727968078927,0.95552954,60246.0,60245.0,0.001816]
[1727968079174,0.94191514,60246.0,60245.0,0.001816]
[1727968079405,1.01928471,60246.0,60245.0,0.001816]
[1727968079631,0.99326238,60246.0,60245.0,0.001816]
[1727968080405,1.24198354,60246.0,60245.0,0.001816]
[1727968080655,1.18526238,60246.0,60245.0,0.001816]
[1727968081578,1.17526238,60246.0,60245.0,0.000816]
[1727968081805,1.18526238,60246.0,60245.0,0.000816]
[1727968082313,1.18690038,60246.0,60245.0,0.000816]
[1727968082546,1.20492508,60246.0,60245.0,0.000816]
[1727968082781,1.21892508,60246.0,60245.0,0.000816]
[1727968083381,1.21892508,60246.0,60235.0,0.0001]
[1727968083382,0.002,60236.0,60235.0,0.0001]
[1727968083577,0.266063,60218.0,60217.0,0.24872116]
[1727968083787,0.266063,60218.0,60216.0,0.0159837]
[1727968083788,0.002,60216.0,60201.0,0.0002]
[1727968084021,0.166093,60207.0,60206.0,0.000818]
[1727968084504,0.32927971,60207.0,60206.0,0.000818]
[1727968084737,0.77083543,60207.0,60206.0,0.000818]
[1727968085415,0.79687346,60207.0,60206.0,0.000818]
[1727968085661,0.87957346,60207.0,60206.0,0.000818]
[1727968085908,1.01672214,60207.0,60206.0,0.000818]
[1727968086147,1.03072214,60207.0,60206.0,0.000818]
[1727968086618,1.01672214,60207.0,60206.0,0.000818]
[1727968086856,1.03072214,60207.0,60206.0,0.000818]
[1727968087091,1.05676119,60207.0,60206.0,0.000818]
[1727968087577,1.40548235,60207.0,60206.0,0.000818]
[1727968087812,0.273099,60205.0,60201.0,0.0002]
[1727968088052,0.45928571,60205.0,60201.0,0.0002]
[1727968088275,0.377207,60202.0,60201.0,0.0002]
[1727968088514,0.273121,60197.0,60196.0,0.000816]
[1727968088758,0.79110372,60187.0,60186.0,0.000818]
[1727968088994,0.60771772,60182.0,60161.0,0.25427476]
[1727968089221,0.77090443,60182.0,60162.0,0.166216]
[1727968089454,0.77090443,60182.0,60161.0,0.24892116]
[1727968089992,0.77090443,60182.0,60163.0,0.332428]
[1727968090239,0.77090443,60182.0,60163.0,0.332426]
[1727968090479,0.77090443,60182.0,60170.0,0.332389]
[1727968090480,0.16318671,60182.0,60170.0,0.332389]
[1727968091209,0.32934871,60182.0,60170.0,0.332389]
[1727968091436,0.32934871,60182.0,60172.0,0.00526722]
[1727968091665,0.32934871,60182.0,60173.0,0.332373]
[1727968091897,0.16318671,60182.0,60178.0,0.166173]
[1727968092138,0.16318671,60182.0,60177.0,0.166176]
[1727968092368,0.332318,60184.0,60172.0,0.00526722]
[1727968092369,0.02604629,60184.0,60183.0,0.166159]
[1727968092612,0.166162,60182.0,60172.0,0.332377]
[1727968092839,0.32934871,60182.0,60169.0,0.332395]
[1727968093070,0.32934871,60182.0,60164.0,0.34602116]
[1727968093071,0.32934871,60182.0,60165.0,0.1]
[1727968093310,0.32934871,60182.0,60170.0,0.166193]
[1727968093311,0.34134871,60182.0,60170.0,0.166193]
[1727968093547,0.34134871,60182.0,60167.0,0.332406]
[1727968093548,0.34134871,60182.0,60171.0,0.166192]
[1727968093778,0.34134871,60182.0,60170.0,0.33239]
[1727968094031,0.34134871,60182.0,60181.0,0.001019]
[1727968094032,0.34334871,60182.0,60181.0,0.001019]
[1727968094272,0.50453542,60182.0,60181.0,0.001019]
[1727968094505,0.49253542,60182.0,60181.0,0.001019]
[1727968095011,0.49853542,60182.0,60181.0,0.001019]
[1727968095239,0.60053542,60182.0,60181.0,0.001019]
[1727968095483,0.59453542,60182.0,60181.0,0.001019]
[1727968095726,0.89362424,60182.0,60181.0,0.001019]
[1727968095964,0.34334871,60182.0,60181.0,0.001019]
[1727968096214,0.32934871,60182.0,60181.0,0.001019]
[1727968096447,0.17718671,60182.0,60181.0,0.001019]
[1727968096673,0.34334871,60182.0,60181.0,0.001019]
[1727968096913,0.17718671,60182.0,60181.0,0.001019]
[1727968097139,0.014,60182.0,60181.0,0.167184]
[1727968097371,0.014,60182.0,60181.0,0.001019]
[1727968097635,0.332305,60186.0,60181.0,0.001019]
[1727968097867,0.16318671,60185.0,60181.0,0.001019]
[1727968098096,0.012,60182.0,60181.0,0.167181]
[1727968098545,0.28708882,60198.0,60181.0,0.001019]
[1727968098801,0.24872116,60186.0,60181.0,0.001019]
[1727968099040,0.16318671,60192.0,60181.0,0.001019]
[1727968099280,0.30230216,60193.0,60181.0,0.001019]
[1727968099281,0.27476415,60193.0,60192.0,0.166135]
[1727968100006,0.02604299,60193.0,60192.0,0.166135]
[1727968100237,0.02604299,60193.0,60182.0,0.1]
[1727968100238,0.332271,60192.0,60182.0,0.1]
[1727968100475,0.332286,60189.0,60182.0,0.332324]
[1727968100708,0.332271,60192.0,60183.0,0.332318]
[1727968100709,0.16318671,60188.0,60183.0,0.332318]
[1727968100958,0.02604299,60193.0,60181.0,0.00644967]
[1727968101184,0.02604299,60193.0,60192.0,0.166135]
[1727968102179,0.166136,60192.0,60188.0,0.166145]
[1727968102449,0.166146,60188.0,60183.0,0.332316]
[1727968102772,0.16318671,60187.0,60181.0,0.00644967]
[1727968102985,0.166138,60191.0,60187.0,0.166147]
[1727968103210,0.02604299,60193.0,60181.0,0.00644967]
[1727968103420,0.02604299,60193.0,60192.0,0.166135]
[1727968103649,0.24872116,60192.0,60191.0,0.166137]
[1727968103874,0.02604299,60193.0,60192.0,0.166135]
[1727968104111,0.03204299,60193.0,60192.0,0.166135]
[1727968105378,0.02604299,60193.0,60192.0,0.166135]
[1727968106059,0.24872116,60210.0,60209.0,0.166088]
[1727968106533,0.24872116,60217.0,60216.0,0.166068]
[1727968107231,0.24872116,60231.0,60214.0,0.410848]
[1727968107232,0.24872116,60231.0,60226.0,0.166038]
[1727968107458,0.24872116,60231.0,60215.0,0.123]
[1727968107459,0.166035,60229.0,60215.0,0.123]
[1727968107688,0.166035,60229.0,60225.0,0.166042]
[1727968108160,0.166035,60229.0,60218.0,0.166062]
[1727968108161,0.16318671,60229.0,60218.0,0.166062]
[1727968108382,0.332077,60227.0,60222.0,0.166051]
[1727968108612,0.166037,60228.0,60219.0,0.332115]
[1727968108839,0.28708882,60245.0,60218.0,0.023]
[1727968109064,0.58078716,60229.0,60215.0,0.1]
[1727968109337,0.02602558,60226.0,60217.0,0.332127]
[1727968109563,0.332088,60225.0,60217.0,0.332127]
[1727968109789,0.16318671,60225.0,60210.0,0.1]
[1727968110023,0.16318671,60225.0,60214.0,0.166073]
[1727968110024,0.166062,60219.0,60214.0,0.166073]
[1727968110258,0.16318671,60225.0,60212.0,0.1]
[1727968110524,0.16318671,60225.0,60210.0,0.00524143]
[1727968110525,0.16608,60212.0,60210.0,0.00524143]
[1727968110983,0.16608,60212.0,60208.0,0.166089]
[1727968111439,0.16608,60212.0,60206.0,0.332187]
[1727968111440,0.166075,60214.0,60210.0,0.166083]
[1727968111666,0.332137,60216.0,60206.0,0.00536931]
[1727968111667,0.2874115,60213.0,60206.0,0.00536931]
[1727968111882,0.332165,60211.0,60206.0,0.00536931]
[1727968112106,0.16609,60209.0,60202.0,0.332212]
[1727968112327,0.166091,60208.0,60204.0,0.166101]
[1727968112556,0.35820603,60210.0,60202.0,0.332212]
[1727968112557,0.24872116,60209.0,60202.0,0.00531358]
[1727968112783,0.33219,60207.0,60202.0,0.00531358]
[1727968113046,0.332182,60208.0,60201.0,0.166108]
[1727968113285,0.332182,60208.0,60199.0,0.332231]
[1727968113286,0.02603203,60210.0,60209.0,0.166088]
[1727968114449,0.02603203,60210.0,60209.0,0.189088]
[1727968114679,0.0825,60234.0,60210.0,0.123]
[1727968114902,0.24872116,60221.0,60220.0,0.166057]
[1727968115643,0.166042,60226.0,60222.0,0.166051]
[1727968115868,0.166042,60226.0,60218.0,0.332126]
[1727968115869,0.166031,60230.0,60227.0,0.166038]
[1727968116095,0.332049,60233.0,60227.0,0.166038]
[1727968116340,0.24872116,60232.0,60227.0,0.332073]
[1727968116583,0.0825,60242.0,60227.0,0.332073]
[1727968116584,0.25035916,60246.0,60227.0,0.28708882]
[1727968116819,0.24872116,60236.0,60235.0,0.166016]
[1727968117285,0.166006,60239.0,60234.0,0.166017]
[1727968117505,0.166006,60239.0,60231.0,0.332053]
[1727968117506,0.166025,60232.0,60228.0,0.266035]
[1727968117726,0.16318671,60238.0,60227.0,0.0053551]
[1727968117727,0.332023,60237.0,60227.0,0.0053551]
[1727968117963,0.166031,60230.0,60227.0,0.0053551]
[1727968118207,0.166031,60230.0,60226.0,0.166041]
[1727968118431,0.16318671,60236.0,60221.0,0.1]
[1727968118652,0.166036,60228.0,60224.0,0.166045]
[1727968118873,0.166028,60231.0,60224.0,0.166045]
[1727968119096,0.07605315,60235.0,60221.0,0.1]
[1727968119324,0.336896,60260.0,60225.0,0.44166193]
[1727968119325,0.54056193,60259.0,60225.0,0.44166193]
[1727968119605,0.27359328,60239.0,60238.0,0.166008]
[1727968119815,0.24872116,60239.0,60238.0,0.166008]
[1727968120039,0.33194,60252.0,60236.0,0.332026]
[1727968120263,0.41354587,60246.0,60244.0,0.165989]
[1727968120490,0.41354587,60246.0,60245.0,0.165988]
[1727968120491,0.25035916,60246.0,60245.0,0.165988]
[1727968120720,0.001638,60246.0,60245.0,0.165988]
[1727968122576,0.001638,60246.0,60245.0,0.188988]
[1727968122802,0.002638,60246.0,60245.0,0.19440136]
[1727968123269,0.002,60278.0,60264.0,0.24872116]
[1727968123525,0.01164,60291.0,60264.0,0.304266]
[1727968123526,0.24872116,60279.0,60264.0,0.304266]
[1727968123753,0.24872116,60279.0,60245.0,0.57455741]
[1727968123754,0.24872116,60279.0,60278.0,0.76388993]
[1727968124223,0.24872116,60286.0,60278.0,0.54166193]
[1727968124460,0.24872116,60286.0,60285.0,0.165878]
[1727968124700,0.24872116,60286.0,60265.0,0.411765]
[1727968124701,0.24872116,60286.0,60271.0,0.54166193]
[1727968124921,0.16318671,60285.0,60278.0,0.24872116]
[1727968125134,0.014,60278.0,60267.0,0.023]
[1727968125353,0.014,60278.0,60277.0,0.1659]
[1727968125579,0.16318671,60285.0,60274.0,0.331815]
[1727968125811,0.24872116,60282.0,60281.0,0.165889]
[1727968126108,0.24872116,60282.0,60279.0,0.165894]
[1727968126332,0.16318671,60285.0,60283.0,0.165882]
[1727968126557,0.16318671,60285.0,60284.0,0.165881]
[1727968126789,0.16618671,60285.0,60278.0,0.331793]
[1727968127015,0.16618671,60285.0,60279.0,0.165894]
[1727968127249,0.24872116,60284.0,60263.0,0.24872116]
[1727968127472,0.331776,60282.0,60270.0,0.24872116]
[1727968127688,0.16318671,60281.0,60270.0,0.41464016]
[1727968127913,0.16318671,60281.0,60270.0,0.24872116]
[1727968128360,0.16318671,60281.0,60275.0,0.165905]
[1727968128622,0.16318671,60281.0,60274.0,0.331814]
[1727968128850,0.16318671,60281.0,60277.0,0.165899]
[1727968129069,0.17218671,60281.0,60276.0,0.165903]
[1727968129295,0.17218671,60281.0,60276.0,0.165902]
[1727968129514,0.24014,60281.0,60264.0,0.1]
[1727968129737,0.165901,60277.0,60270.0,0.24872116]
[1727968129965,0.32909071,60276.0,60268.0,0.165923]
[1727968130190,0.32909071,60276.0,60266.0,0.24872116]
[1727968130191,0.331813,60275.0,60266.0,0.24872116]
[1727968130406,0.16318671,60274.0,60267.0,0.165925]
[1727968130635,0.16318671,60274.0,60267.0,0.331855]
[1727968130864,0.06795329,60281.0,60261.0,0.00539247]
[1727968130865,0.02600664,60273.0,60272.0,0.165914]
[1727968131356,0.41457716,60293.0,60284.0,0.165881]
[1727968131606,0.41457716,60293.0,60281.0,0.331774]
[1727968131607,0.2763637,60285.0,60281.0,0.331774]
[1727968131845,0.002,60281.0,60279.0,0.331788]
[1727968132129,0.002,60281.0,60273.0,0.331823]
[1727968132379,0.02764254,60285.0,60275.0,0.165905]
[1727968132380,0.19352254,60285.0,60275.0,0.165905]
[1727968132637,0.19352254,60285.0,60271.0,0.331831]
[1727968132638,0.41190787,60284.0,60271.0,0.331831]
[1727968132893,0.57779087,60284.0,60274.0,0.165908]
[1727968133152,0.331768,60283.0,60267.0,0.1]
[1727968133396,0.16318671,60282.0,60275.0,0.165904]
[1727968133629,0.16318671,60282.0,60273.0,0.24872116]
[1727968133630,0.16318671,60282.0,60273.0,0.165909]
[1727968133882,0.21544494,60282.0,60272.0,0.165912]
[1727968134142,0.21544494,60282.0,60275.0,0.165905]
[1727968134379,0.2763637,60285.0,60270.0,0.331837]
[1727968134611,0.16318671,60284.0,60275.0,0.33181]
[1727968135084,0.32906871,60284.0,60275.0,0.165905]
[1727968135316,0.003,60281.0,60275.0,0.165905]
[1727968135557,0.16318671,60280.0,60267.0,0.431855]
[1727968135807,0.24872116,60277.0,60266.0,0.25399101]
[1727968136063,0.331826,60273.0,60266.0,0.24872116]
[1727968136370,0.16318671,60272.0,60264.0,0.24872116]
[1727968136644,0.16318671,60272.0,60266.0,0.165928]
[1727968136896,0.32910271,60272.0,60261.0,0.331887]
[1727968137122,0.32910271,60272.0,60265.0,0.165932]
[1727968137595,0.16318671,60272.0,60258.0,0.00538156]
[1727968137853,0.16592,60270.0,60262.0,0.331882]
[1727968138103,0.16318671,60270.0,60263.0,0.331877]
[1727968138339,0.165926,60268.0,60260.0,0.331892]
[1727968138596,0.20508127,60270.0,60261.0,0.165944]
[1727968138597,0.165929,60267.0,60261.0,0.165944]
[1727968138847,0.165929,60267.0,60260.0,0.331892]
[1727968139076,0.16318671,60270.0,60264.0,0.33187]
[1727968139332,0.41490787,60270.0,60262.0,0.331883]
[1727968139594,0.41490787,60270.0,60264.0,0.331871]
[1727968139595,0.16618671,60270.0,60264.0,0.331871]
[1727968139869,0.35782627,60274.0,60273.0,0.165911]
[1727968139870,0.02600827,60274.0,60273.0,0.165911]
[1727968140670,0.331763,60284.0,60275.0,0.331808]
[1727968140900,0.18919033,60284.0,60269.0,0.1]
[1727968141347,0.02600362,60284.0,60275.0,0.24872116]
[1727968141408,0.02600362,60284.0,60283.0,0.265884]
[1727968141648,0.00164,60285.0,60284.0,0.288881]
[1727968141900,0.00164,60291.0,60284.0,0.288881]
[1727968141901,0.00018,60291.0,60290.0,0.165864]
[1727968142139,0.00018,60291.0,60290.0,0.288864]
[1727968143352,0.00018,60291.0,60290.0,0.5304024]
[1727968143353,0.00118,60291.0,60290.0,0.5304024]
[1727968143577,0.24872116,60305.0,60304.0,0.188826]
[1727968143810,0.24872116,60305.0,60304.0,0.63048793]
[1727968144362,0.001638,60309.0,60306.0,0.16582]
[1727968145505,0.001638,60309.0,60298.0,0.331685]
[1727968145728,0.001638,60309.0,60285.0,0.005]
[1727968145729,0.002638,60307.0,60306.0,0.16582]
[1727968145961,0.002638,60307.0,60301.0,0.331667]
[1727968146210,0.001638,60307.0,60300.0,0.331673]
[1727968146439,0.001638,60307.0,60293.0,0.331712]
[1727968146696,0.001638,60307.0,60299.0,0.331676]
[1727968146697,0.167456,60307.0,60299.0,0.331676]
[1727968146926,0.167456,60307.0,60292.0,0.24872116]
[1727968146927,0.0811,60302.0,60292.0,0.24872116]
[1727968147165,0.165851,60296.0,60292.0,0.24872116]
[1727968147388,0.0811,60302.0,60292.0,0.24872116]
[1727968147389,0.246932,60302.0,60297.0,0.165844]
[1727968147615,0.03950728,60306.0,60289.0,0.80293]
[1727968147616,0.02599234,60306.0,60290.0,0.24872116]
[1727968147839,0.02599234,60306.0,60299.0,0.165839]
[1727968147840,0.165826,60304.0,60299.0,0.165839]
[1727968148063,0.165826,60304.0,60300.0,0.165836]
[1727968148290,0.165826,60304.0,60295.0,0.331697]
[1727968148291,0.001638,60307.0,60301.0,0.331665]
[1727968148515,0.002638,60307.0,60304.0,0.165825]
[1727968148777,0.33165,60305.0,60290.0,0.71992116]
[1727968149031,0.2380519,60304.0,60290.0,0.58044516]
[1727968149259,0.2380519,60304.0,60290.0,0.24872116]
[1727968149260,0.165862,60291.0,60290.0,0.24872116]
[1727968149763,0.331741,60288.0,60282.0,0.24872116]
[1727968150007,0.16589,60281.0,60276.0,0.165901]
[1727968150229,0.165882,60284.0,60280.0,0.165892]
[1727968150463,0.16318671,60287.0,60279.0,0.165895]
[1727968150464,0.01685855,60283.0,60279.0,0.165895]
[1727968150707,0.01685855,60283.0,60274.0,0.00539873]
[1727968150708,0.24872116,60286.0,60274.0,0.00539873]
[1727968150952,0.03057348,60285.0,60279.0,0.165894]
[1727968151223,0.01695546,60284.0,60283.0,0.165884]
[1727968151447,0.03057988,60284.0,60283.0,0.165884]
[1727968151702,0.01695546,60284.0,60283.0,0.165884]
[1727968152146,0.01695546,60284.0,60283.0,0.188884]
[1727968152369,0.02600049,60292.0,60283.0,0.188884]
[1727968152370,0.01697679,60291.0,60286.0,0.331751]
[1727968152613,0.02600049,60292.0,60291.0,0.165862]
[1727968152842,0.02600049,60292.0,60287.0,0.165871]
[1727968152843,0.05655269,60292.0,60287.0,0.165871]
[1727968153099,0.05655269,60292.0,60280.0,0.001]
[1727968153100,0.19373891,60291.0,60277.0,0.34872116]
[1727968153356,0.165892,60281.0,60277.0,0.41462016]
[1727968153611,0.16318671,60291.0,60277.0,0.41462016]
[1727968153612,0.01692637,60280.0,60279.0,0.165895]
[1727968153900,0.01692637,60280.0,60279.0,0.41584262]
[1727968154098,0.01692637,60280.0,60279.0,0.265895]
[1727968154330,0.24872116,60286.0,60281.0,0.331777]
[1727968154572,0.02599994,60292.0,60281.0,0.331777]
[1727968154801,0.0306805,60291.0,60290.0,0.165864]
[1727968155311,0.01702701,60291.0,60290.0,0.89371264]
[1727968155549,0.005,60292.0,60291.0,0.288862]
[1727968155803,0.005,60292.0,60291.0,0.45204871]
[1727968156034,0.24872116,60303.0,60302.0,0.165831]
[1727968156285,0.26574444,60303.0,60302.0,0.165831]
[1727968156771,0.01702328,60303.0,60302.0,0.165831]
[1727968157441,0.01702328,60303.0,60291.0,0.02835556]
[1727968157669,0.000818,60308.0,60303.0,0.165829]
[1727968157909,0.01874578,60304.0,60303.0,0.165829]
[1727968158132,0.01874578,60304.0,60299.0,0.497513]
[1727968158357,0.01710778,60303.0,60300.0,0.165837]
[1727968158584,0.01710778,60303.0,60296.0,0.331692]
[1727968158585,0.01710778,60303.0,60299.0,0.33168]
[1727968158812,0.01713036,60302.0,60301.0,0.165834]
[1727968159973,0.01713036,60302.0,60295.0,0.331701]
[1727968160256,0.01713036,60302.0,60287.0,0.331743]
[1727968160257,0.29427058,60301.0,60287.0,0.331743]
[1727968160485,0.29427058,60301.0,60275.0,0.71992116]
[1727968160486,0.44166193,60298.0,60278.0,0.331794]
[1727968160711,0.44166193,60293.0,60275.0,0.24872116]
[1727968160942,0.24872116,60299.0,60282.0,0.24872116]
[1727968160943,0.44166193,60283.0,60282.0,0.24872116]
[1727968161176,0.165903,60276.0,60275.0,0.24872116]
[1727968161407,0.04778387,60276.0,60275.0,0.24872116]
[1727968161641,0.03404215,60276.0,60271.0,0.165915]
[1727968161876,0.165926,60268.0,60265.0,0.000819]
[1727968162098,0.165926,60268.0,60267.0,0.24872116]
[1727968162335,0.165926,60268.0,60265.0,0.000819]
[1727968162336,0.165931,60266.0,60265.0,0.000819]
[1727968162562,0.21370442,60266.0,60265.0,0.000819]
[1727968163020,0.37689113,60266.0,60265.0,0.000819]
[1727968163493,0.55112623,60266.0,60265.0,0.000819]
[1727968163711,0.48000212,60266.0,60265.0,0.000819]
[1727968164185,0.46310869,60266.0,60265.0,0.000819]
[1727968164652,0.46410869,60266.0,60265.0,0.000819]
[1727968165110,0.47994017,60266.0,60265.0,0.000819]
[1727968165351,0.47994017,60266.0,60258.0,0.000819]
[1727968165352,0.60761193,60259.0,60258.0,0.000819]
[1727968165622,0.77079864,60259.0,60258.0,0.000819]
[1727968165845,0.78798153,60259.0,60258.0,0.000819]
[1727968166067,0.81399689,60259.0,60258.0,0.000819]
[1727968166511,0.3463196,60259.0,60258.0,0.000819]
[1727968167451,0.95116824,60259.0,60258.0,0.000819]
[1727968167675,0.3573196,60259.0,60258.0,0.000819]
[1727968167914,0.3709694,60259.0,60258.0,0.000819]
[1727968168138,0.39688287,60259.0,60258.0,0.000819]
[1727968168594,0.8385448,60259.0,60258.0,0.000819]
[1727968168829,1.00173151,60259.0,60258.0,0.000819]
[1727968169323,0.97100096,60259.0,60258.0,0.000819]
[1727968169576,0.82490835,60259.0,60258.0,0.000819]
[1727968169824,0.83855667,60259.0,60258.0,0.000819]
[1727968170311,0.94055667,60259.0,60258.0,0.000819]
[1727968170552,0.165988,60245.0,60244.0,0.24872116]
[1727968170795,0.34626881,60245.0,60244.0,0.24872116]
[1727968171069,0.34626881,60245.0,60234.0,0.41473816]
[1727968171306,0.331995,60242.0,60234.0,0.24872116]
[1727968171569,0.166005,60239.0,60235.0,0.166015]
[1727968172108,0.49518871,60241.0,60235.0,0.166015]
[1727968172109,0.49518871,60241.0,60236.0,0.166011]
[1727968172375,0.49518871,60241.0,60232.0,0.332044]
[1727968172376,0.16318671,60241.0,60232.0,0.332044]
[1727968172619,0.16318671,60241.0,60231.0,0.24872116]
[1727968172844,0.16318671,60241.0,60237.0,0.166008]
[1727968173076,0.166003,60240.0,60234.0,0.332034]
[1727968173317,0.166013,60237.0,60233.0,0.166021]
[1727968173559,0.166004,60240.0,60236.0,0.166011]
[1727968173820,0.41471416,60244.0,60240.0,0.166]
[1727968174068,0.02601986,60240.0,60238.0,0.166007]
[1727968174309,0.02601986,60240.0,60237.0,0.332018]
[1727968174552,0.166007,60239.0,60230.0,0.000817]
[1727968174795,0.02601986,60240.0,60239.0,0.166005]
[1727968175069,0.005,60240.0,60239.0,0.166005]
[1727968175326,0.165995,60243.0,60239.0,0.166005]
[1727968175558,0.332019,60238.0,60230.0,0.000817]
[1727968175798,0.16318671,60240.0,60230.0,0.000817]
[1727968175799,0.006,60240.0,60237.0,0.166009]
[1727968176030,0.006,60240.0,60234.0,0.166016]
[1727968176031,0.166009,60238.0,60234.0,0.166016]
[1727968176515,0.166009,60238.0,60235.0,0.000817]
[1727968176797,0.166013,60236.0,60235.0,0.000817]
[1727968177036,0.32919971,60236.0,60235.0,0.000817]
[1727968178002,0.35722172,60236.0,60235.0,0.000817]
[1727968178245,0.56089416,60236.0,60235.0,0.000817]
[1727968178489,0.67251038,60236.0,60235.0,0.000817]
[1727968178753,0.67851038,60236.0,60235.0,0.000817]
[1727968179480,0.66489416,60236.0,60235.0,0.000817]
[1727968180484,0.65889416,60236.0,60235.0,0.000817]
[1727968180758,0.67286064,60236.0,60235.0,0.000817]
[1727968180987,0.43581459,60236.0,60235.0,0.000817]
[1727968181478,0.41879971,60236.0,60235.0,0.000817]
[1727968181713,0.46184114,60236.0,60235.0,0.000817]
[1727968181975,0.5754453,60236.0,60235.0,0.000817]
[1727968182226,0.73863201,60236.0,60235.0,0.000817]
[1727968182456,0.74063201,60236.0,60235.0,0.000817]
[1727968183446,0.70768893,60231.0,60230.0,0.000817]
[1727968183692,0.90149628,60231.0,60230.0,0.000817]
[1727968183952,0.90151455,60231.0,60230.0,0.000817]
[1727968184219,1.0681876,60231.0,60230.0,0.000817]
[1727968184482,0.90152829,60231.0,60230.0,0.000817]
[1727968184732,0.91861984,60231.0,60230.0,0.000817]
[1727968185191,0.93261984,60231.0,60230.0,0.000817]
[1727968186154,0.39095791,60231.0,60230.0,0.000817]
[1727968186631,0.5372265,60231.0,60230.0,0.000817]
[1727968186869,0.39095791,60231.0,60230.0,0.000817]
[1727968187148,0.21067965,60231.0,60230.0,0.000817]
[1727968187609,1.08130099,60231.0,60230.0,0.000817]
[1727968187861,0.83257983,60231.0,60230.0,0.000817]
[1727968188094,0.81857983,60231.0,60230.0,0.000817]
[1727968188337,0.98776654,60231.0,60230.0,0.000817]
[1727968188595,0.3829179,60231.0,60230.0,0.000817]
[1727968188806,0.3769179,60231.0,60230.0,0.000817]
[1727968189984,0.34626525,60231.0,60230.0,0.000817]
[1727968190218,0.35926525,60231.0,60230.0,0.000817]
[1727968190496,0.03010348,60231.0,60230.0,0.166847]
[1727968190766,0.01710348,60231.0,60230.0,0.166847]
[1727968190990,0.02210348,60231.0,60230.0,0.166847]
[1727968191442,0.01710348,60231.0,60230.0,0.166847]
[1727968191713,0.01710348,60231.0,60230.0,0.167847]
[1727968192223,0.01710348,60231.0,60230.0,0.35403371]
[1727968192953,0.01710348,60231.0,60230.0,1.02522564]
[1727968193201,0.24872116,60242.0,60241.0,0.165999]
[1727968193464,0.001636,60258.0,60250.0,0.165975]
[1727968193678,0.28295526,60251.0,60250.0,0.165975]
[1727968194130,0.28282037,60251.0,60249.0,0.165976]
[1727968194357,0.01716362,60251.0,60248.0,0.165979]
[1727968194658,0.01716362,60250.0,60245.0,0.00524492]
[1727968194874,0.01716362,60249.0,60247.0,0.16598]
[1727968195110,0.01716362,60248.0,60247.0,0.16598]
[1727968195363,0.01716362,60248.0,60243.0,0.331987]
[1727968195608,0.35795081,60254.0,60239.0,0.1]
[1727968195829,0.01723767,60253.0,60252.0,0.165969]
[1727968196752,0.25035716,60258.0,60257.0,0.165955]
[1727968197003,0.001636,60258.0,60257.0,0.165955]
[1727968197291,0.01883698,60258.0,60257.0,0.188955]
[1727968197787,0.001636,60258.0,60257.0,0.188955]
[1727968198005,0.02389589,60258.0,60257.0,0.188955]
[1727968198254,0.02389589,60258.0,60257.0,0.45214171]
[1727968198531,0.02389435,60258.0,60257.0,0.45214171]
[1727968198747,0.02388429,60258.0,60257.0,0.45214171]
[1727968198968,0.006636,60258.0,60257.0,0.45214171]
[1727968199844,0.001636,60258.0,60257.0,0.288955]
[1727968200077,0.001636,60258.0,60257.0,0.265955]
[1727968200303,0.01988996,60258.0,60257.0,0.266955]
[1727968200521,0.18584289,60258.0,60257.0,0.001]
[1727968200754,0.331931,60254.0,60246.0,0.24872116]
[1727968200984,0.165983,60247.0,60246.0,0.24872116]
[1727968201205,0.18323689,60247.0,60246.0,0.24872116]
[1727968201437,0.18323689,60247.0,60238.0,0.24872116]
[1727968201438,0.165995,60243.0,60238.0,0.24872116]
[1727968201684,0.01725389,60242.0,60241.0,0.165999]
[1727968201906,0.01725389,60242.0,60241.0,0.41028571]
[1727968202122,0.24872116,60256.0,60255.0,0.165961]
[1727968202406,0.26594329,60256.0,60255.0,0.165961]
[1727968202624,0.01722213,60256.0,60255.0,0.265961]
[1727968202844,0.009636,60258.0,60257.0,0.188955]
[1727968203059,0.009636,60258.0,60257.0,0.19227358]
[1727968203276,0.009636,60258.0,60257.0,0.188955]
[1727968203490,0.001636,60258.0,60257.0,0.188955]
[1727968204358,0.001636,60258.0,60257.0,0.188455]
[1727968204593,0.002636,60258.0,60257.0,0.166455]
[1727968205065,0.001636,60258.0,60257.0,0.165455]
[1727968205318,0.01878527,60258.0,60252.0,0.331935]
[1727968205543,0.01878527,60258.0,60257.0,0.001]
[1727968205544,0.18573508,60258.0,60257.0,0.001]
[1727968205763,0.002636,60258.0,60257.0,0.001]
[1727968205996,0.18573621,60258.0,60257.0,0.001]
[1727968206225,0.01978321,60258.0,60257.0,0.001]
[1727968206454,0.18573621,60258.0,60257.0,0.001]
[1727968206691,0.01978321,60258.0,60257.0,0.166955]
[1727968206972,0.01978321,60258.0,60257.0,0.001]
[1727968207214,0.01978321,60258.0,60249.0,0.331952]
[1727968207215,0.16596,60256.0,60249.0,0.331952]
[1727968207493,0.40073075,60255.0,60247.0,0.165982]
[1727968207747,0.40073075,60255.0,60237.0,0.803217]
[1727968207748,0.01713953,60254.0,60237.0,0.803217]
[1727968207985,0.01713953,60253.0,60246.0,0.24872116]
[1727968208240,0.01713953,60253.0,60237.0,0.4712]
[1727968208241,0.18032624,60252.0,60237.0,0.4712]
[1727968208469,0.18032624,60252.0,60231.0,0.29813889]
[1727968208470,0.01713953,60251.0,60239.0,0.24872116]